[Event "*** Titled Tuesday Blitz"]
[Site "Chess.com"]
[Date "2019.08.06"]
[Round "3"]
[White "ClockworkKubrick"]
[Black "ZenBull"]
[Result "1/2-1/2"]
[WhiteElo "2189"]
[BlackElo "2125"]
[TimeControl "180+2"]
[EndTime "13:39:13 PDT"]
[Termination "Game drawn - insufficient material"]

1. e4 {[%clk 0:02:57.4]} 1... c5 {[%clk 0:03:00.5]} 2. Nf3 {[%clk 0:02:52]} 2...
e6 {[%clk 0:03:00.5]} 3. Nc3 {[%clk 0:02:53.7]} 3... Nc6 {[%clk 0:03:01.1]} 4.
Bb5 {[%clk 0:02:54.4]} 4... Nge7 {[%clk 0:03:01.8]} 5. O-O {[%clk 0:02:54.7]}
5... a6 {[%clk 0:03:03]} 6. Bxc6 {[%clk 0:02:55.6]} 6... Nxc6 {[%clk 0:03:04.9]}
7. d3 {[%clk 0:02:57.4]} 7... Be7 {[%clk 0:02:21.3]} 8. h3 {[%clk 0:02:52.4]}
8... O-O {[%clk 0:02:20.4]} 9. Nh2 {[%clk 0:02:51]} 9... b5 {[%clk 0:02:16.5]}
10. f4 {[%clk 0:02:52]} 10... Bb7 {[%clk 0:02:13.4]} 11. Nf3 {[%clk 0:02:46.2]}
11... Rc8 {[%clk 0:02:11.9]} 12. Rf2 {[%clk 0:02:46.6]} 12... Qc7 {[%clk
0:02:10.2]} 13. f5 {[%clk 0:02:43.3]} 13... Nd4 {[%clk 0:02:06.2]} 14. Be3
{[%clk 0:02:20.4]} 14... exf5 {[%clk 0:01:54.2]} 15. Nxd4 {[%clk 0:02:21.2]}
15... cxd4 {[%clk 0:01:53.5]} 16. Bxd4 {[%clk 0:02:22]} 16... fxe4 {[%clk
0:01:35.3]} 17. dxe4 {[%clk 0:02:17.9]} 17... Bc5 {[%clk 0:01:29]} 18. Nd5
{[%clk 0:02:14.2]} 18... Bxd5 {[%clk 0:01:25.1]} 19. exd5 {[%clk 0:02:15]} 19...
d6 {[%clk 0:01:16.5]} 20. c3 {[%clk 0:02:13.5]} 20... Bxd4 {[%clk 0:01:07.3]}
21. Qxd4 {[%clk 0:02:14.2]} 21... Qc5 {[%clk 0:01:09.2]} 22. Qe4 {[%clk
0:02:08.2]} 22... Rfe8 {[%clk 0:01:08.6]} 23. Qf3 {[%clk 0:02:06.7]} 23... Rc7
{[%clk 0:01:06.3]} 24. Rf1 {[%clk 0:02:07.1]} 24... Re5 {[%clk 0:00:59]} 25. Rd1
{[%clk 0:01:55.9]} 25... Rce7 {[%clk 0:00:57]} 26. Kh2 {[%clk 0:01:54.9]} 26...
h6 {[%clk 0:00:52.4]} 27. Rd4 {[%clk 0:01:50.7]} 27... Rg5 {[%clk 0:00:41.3]}
28. h4 {[%clk 0:01:41.4]} 28... Rge5 {[%clk 0:00:41.7]} 29. g3 {[%clk
0:01:39.6]} 29... Re3 {[%clk 0:00:41.1]} 30. Qf4 {[%clk 0:01:38.9]} 30... R3e5
{[%clk 0:00:39.9]} 31. a3 {[%clk 0:01:34]} 31... Qc7 {[%clk 0:00:40.1]} 32. Rd3
{[%clk 0:01:29.8]} 32... Qc5 {[%clk 0:00:37]} 33. Rd4 {[%clk 0:01:28.8]} 33...
Rxd5 {[%clk 0:00:35.6]} 34. Rxd5 {[%clk 0:01:27]} 34... Qxd5 {[%clk 0:00:36.6]}
35. Rd2 {[%clk 0:01:27.7]} 35... Qe5 {[%clk 0:00:29.4]} 36. Rxd6 {[%clk
0:01:25.6]} 36... Qxf4 {[%clk 0:00:28.5]} 37. gxf4 {[%clk 0:01:26.7]} 37... Re2+
{[%clk 0:00:30.4]} 38. Kg3 {[%clk 0:01:27.7]} 38... Rxb2 {[%clk 0:00:32.3]} 39.
Rb6 {[%clk 0:01:26.8]} 39... Rb3 {[%clk 0:00:31]} 40. Rxa6 {[%clk 0:01:27.5]}
40... Rxc3+ {[%clk 0:00:29.6]} 41. Kg4 {[%clk 0:01:28.5]} 41... g6 {[%clk
0:00:27.4]} 42. h5 {[%clk 0:01:29.3]} 42... Kg7 {[%clk 0:00:22]} 43. Rb6 {[%clk
0:01:25.3]} 43... Rxa3 {[%clk 0:00:20.7]} 44. Rxb5 {[%clk 0:01:26.5]} 44... Ra1
{[%clk 0:00:19.9]} 45. hxg6 {[%clk 0:01:19.9]} 45... Rg1+ {[%clk 0:00:18.7]} 46.
Kf3 {[%clk 0:01:12.3]} 46... Kxg6 {[%clk 0:00:19.3]} 47. Rb6+ {[%clk 0:01:12.2]}
47... f6 {[%clk 0:00:20]} 48. Rb8 {[%clk 0:01:13.6]} 48... Rf1+ {[%clk 0:00:19]}
49. Kg4 {[%clk 0:01:13.2]} 49... h5+ {[%clk 0:00:19.1]} 50. Kg3 {[%clk
0:01:14.4]} 50... Rg1+ {[%clk 0:00:17]} 51. Kf3 {[%clk 0:01:14.8]} 51... Rg4
{[%clk 0:00:16.3]} 52. Rg8+ {[%clk 0:01:12.5]} 52... Kf5 {[%clk 0:00:17.4]} 53.
Rb8 {[%clk 0:01:14.1]} 53... Rxf4+ {[%clk 0:00:18.3]} 54. Kg3 {[%clk 0:01:15.7]}
54... Rg4+ {[%clk 0:00:19.3]} 55. Kf3 {[%clk 0:01:15.9]} 55... Rg5 {[%clk
0:00:19.9]} 56. Re8 {[%clk 0:01:12]} 56... h4 {[%clk 0:00:19.8]} 57. Rh8 {[%clk
0:01:11.9]} 57... Rg3+ {[%clk 0:00:20]} 58. Kf2 {[%clk 0:01:13.3]} 58... Rh3
{[%clk 0:00:21]} 59. Kg2 {[%clk 0:01:13.2]} 59... Ra3 {[%clk 0:00:21]} 60. Rxh4
{[%clk 0:01:13.1]} 60... Kg5 {[%clk 0:00:20.9]} 61. Rh8 {[%clk 0:01:13.9]} 61...
f5 {[%clk 0:00:22]} 62. Kf2 {[%clk 0:01:14.9]} 62... Kf4 {[%clk 0:00:22.3]} 63.
Rb8 {[%clk 0:01:14.6]} 63... Ra2+ {[%clk 0:00:23.4]} 64. Ke1 {[%clk 0:01:15.6]}
64... Kg4 {[%clk 0:00:23.6]} 65. Kf1 {[%clk 0:01:13.8]} 65... f4 {[%clk
0:00:24.4]} 66. Rb7 {[%clk 0:01:13.1]} 66... Kg3 {[%clk 0:00:23.8]} 67. Rg7+
{[%clk 0:01:13.4]} 67... Kf3 {[%clk 0:00:24.7]} 68. Ke1 {[%clk 0:01:14.6]} 68...
Ra1+ {[%clk 0:00:24.9]} 69. Kd2 {[%clk 0:01:15.9]} 69... Ra3 {[%clk 0:00:23]}
70. Ke1 {[%clk 0:01:15.6]} 70... Re3+ {[%clk 0:00:22.5]} 71. Kf1 {[%clk
0:01:16.9]} 71... Rb3 {[%clk 0:00:22.8]} 72. Ke1 {[%clk 0:01:18.4]} 72... Rb1+
{[%clk 0:00:19.2]} 73. Kd2 {[%clk 0:01:18.2]} 73... Rb6 {[%clk 0:00:20.7]} 74.
Ke1 {[%clk 0:01:19]} 74... Re6+ {[%clk 0:00:19.9]} 75. Kf1 {[%clk 0:01:19.8]}
75... Ke3 {[%clk 0:00:21.3]} 76. Rf7 {[%clk 0:01:19.2]} 76... f3 {[%clk
0:00:21.8]} 77. Ra7 {[%clk 0:01:20]} 77... Rh6 {[%clk 0:00:21.6]} 78. Ra3+
{[%clk 0:01:20.7]} 78... Kf4 {[%clk 0:00:22.6]} 79. Ra7 {[%clk 0:01:20.2]} 79...
Rh1+ {[%clk 0:00:22]} 80. Kf2 {[%clk 0:01:21.5]} 80... Rh2+ {[%clk 0:00:23.4]}
81. Kf1 {[%clk 0:01:22.9]} 81... Rb2 {[%clk 0:00:24]} 82. Rf7+ {[%clk
0:01:23.2]} 82... Ke3 {[%clk 0:00:25]} 83. Re7+ {[%clk 0:01:24.2]} 83... Kd4
{[%clk 0:00:25.5]} 84. Re6 {[%clk 0:01:22.6]} 84... Kd5 {[%clk 0:00:22.2]} 85.
Re8 {[%clk 0:01:21.9]} 85... Rb4 {[%clk 0:00:18.6]} 86. Kf2 {[%clk 0:01:21.2]}
86... Rf4 {[%clk 0:00:19.6]} 87. Re3 {[%clk 0:01:19.6]} 87... Kd4 {[%clk
0:00:19.5]} 88. Rxf3 {[%clk 0:01:20.9]} 88... Rxf3+ {[%clk 0:00:20.9]} 89. Kxf3
{[%clk 0:01:22.3]} 1/2-1/2

[Event "*** Titled Tuesday Blitz"]
[Site "Chess.com"]
[Date "2019.08.06"]
[Round "3"]
[White "AntonSmirnov"]
[Black "underdogchss"]
[Result "1-0"]
[WhiteElo "2864"]
[BlackElo "2505"]
[TimeControl "180+2"]
[EndTime "13:39:48 PDT"]
[Termination "AntonSmirnov won by resignation"]

1. e4 {[%clk 0:03:01.9]} 1... c5 {[%clk 0:03:01.1]} 2. Nf3 {[%clk 0:03:02.6]}
2... d6 {[%clk 0:03:02.4]} 3. d4 {[%clk 0:03:03.6]} 3... cxd4 {[%clk 0:03:04.3]}
4. Nxd4 {[%clk 0:03:05.3]} 4... Nf6 {[%clk 0:03:05.9]} 5. Nc3 {[%clk 0:03:06.8]}
5... a6 {[%clk 0:03:07.3]} 6. Be3 {[%clk 0:03:07.9]} 6... Ng4 {[%clk 0:03:07.8]}
7. Bg5 {[%clk 0:03:08.3]} 7... h6 {[%clk 0:03:09.1]} 8. Bc1 {[%clk 0:03:09.5]}
8... Nf6 {[%clk 0:03:09.2]} 9. Bd3 {[%clk 0:03:10.4]} 9... Nc6 {[%clk
0:03:04.5]} 10. Nxc6 {[%clk 0:03:09.5]} 10... bxc6 {[%clk 0:03:05.7]} 11. b3
{[%clk 0:03:10.1]} 11... g6 {[%clk 0:03:03.9]} 12. Bb2 {[%clk 0:03:10.2]} 12...
Bg7 {[%clk 0:03:05]} 13. Na4 {[%clk 0:03:11.2]} 13... O-O {[%clk 0:03:03]} 14.
O-O {[%clk 0:03:12.3]} 14... c5 {[%clk 0:02:51.1]} 15. Qe2 {[%clk 0:02:49]}
15... Bg4 {[%clk 0:02:30.4]} 16. f3 {[%clk 0:02:48.7]} 16... Bd7 {[%clk
0:02:31.2]} 17. Nc3 {[%clk 0:02:29.9]} 17... Nh5 {[%clk 0:02:17.4]} 18. Qd2
{[%clk 0:02:17.2]} 18... Bd4+ {[%clk 0:01:56.7]} 19. Kh1 {[%clk 0:02:16.6]}
19... e5 {[%clk 0:01:58.6]} 20. Nd1 {[%clk 0:01:55]} 20... Qh4 {[%clk 0:01:51]}
21. Qe1 {[%clk 0:01:56]} 21... Qxe1 {[%clk 0:01:43.1]} 22. Rxe1 {[%clk
0:01:57.9]} 22... Nf4 {[%clk 0:01:30.6]} 23. Bf1 {[%clk 0:01:58.7]} 23... Bxb2
{[%clk 0:01:31.5]} 24. Nxb2 {[%clk 0:02:00.6]} 24... Bb5 {[%clk 0:01:22.4]} 25.
Rad1 {[%clk 0:01:49.5]} 25... Rfd8 {[%clk 0:01:19.3]} 26. g3 {[%clk 0:01:50]}
26... Ne6 {[%clk 0:01:19.5]} 27. c3 {[%clk 0:01:50.5]} 27... Bxf1 {[%clk
0:01:05.2]} 28. Rxf1 {[%clk 0:01:52.4]} 28... a5 {[%clk 0:01:06.4]} 29. Na4
{[%clk 0:01:50.8]} 29... Rab8 {[%clk 0:00:54.3]} 30. Rd2 {[%clk 0:01:51.1]}
30... Kf8 {[%clk 0:00:54.3]} 31. Rfd1 {[%clk 0:01:51.2]} 31... Ke7 {[%clk
0:00:55.3]} 32. Nb2 {[%clk 0:01:52.6]} 32... Rb6 {[%clk 0:00:47.2]} 33. Kg2
{[%clk 0:01:45.4]} 33... Ra6 {[%clk 0:00:47.1]} 34. Kf2 {[%clk 0:01:46.3]} 34...
f5 {[%clk 0:00:47.9]} 35. Ke3 {[%clk 0:01:44.5]} 35... fxe4 {[%clk 0:00:45.1]}
36. fxe4 {[%clk 0:01:45]} 36... Rf8 {[%clk 0:00:41.1]} 37. h4 {[%clk 0:01:44.3]}
37... Ng7 {[%clk 0:00:29.9]} 38. Nc4 {[%clk 0:01:38.8]} 38... Rf6 {[%clk
0:00:30.5]} 39. Ke2 {[%clk 0:01:29.1]} 39... Ne8 {[%clk 0:00:29.7]} 40. Ne3
{[%clk 0:01:28.2]} 40... Rf8 {[%clk 0:00:28.1]} 41. Nd5+ {[%clk 0:01:21.5]}
41... Ke6 {[%clk 0:00:28.9]} 42. Ke3 {[%clk 0:01:15.7]} 42... Rf7 {[%clk
0:00:29.3]} 43. a3 {[%clk 0:01:14.1]} 43... Raa7 {[%clk 0:00:29.4]} 44. Rf2
{[%clk 0:01:08.8]} 44... Rxf2 {[%clk 0:00:29.5]} 45. Kxf2 {[%clk 0:01:10.7]}
45... Rb7 {[%clk 0:00:27.8]} 46. b4 {[%clk 0:01:02.9]} 46... cxb4 {[%clk
0:00:27.6]} 47. cxb4 {[%clk 0:00:59.9]} 47... axb4 {[%clk 0:00:28.7]} 48. axb4
{[%clk 0:00:58]} 48... Nc7 {[%clk 0:00:29.3]} 49. Nxc7+ {[%clk 0:00:58.8]} 49...
Rxc7 {[%clk 0:00:30.5]} 50. Rb1 {[%clk 0:01:00]} 50... Rc2+ {[%clk 0:00:30.6]}
51. Kf1 {[%clk 0:00:57.1]} 51... Kd7 {[%clk 0:00:29.8]} 52. b5 {[%clk 0:00:57]}
52... Kc7 {[%clk 0:00:30.7]} 53. Rd1 {[%clk 0:00:56.3]} 53... Rb2 {[%clk
0:00:30.1]} 54. Rd5 {[%clk 0:00:55.7]} 54... Rb4 {[%clk 0:00:31.1]} 55. Kf2
{[%clk 0:00:56.9]} 55... Rxe4 {[%clk 0:00:31.8]} 56. b6+ {[%clk 0:00:58.3]}
56... Kc6 {[%clk 0:00:29.2]} 57. Rb5 {[%clk 0:00:56.2]} 57... Kb7 {[%clk
0:00:25.6]} 58. Kf3 {[%clk 0:00:45.8]} 58... Rd4 {[%clk 0:00:26.6]} 59. Rb1
{[%clk 0:00:43.9]} 59... Rc4 {[%clk 0:00:26.3]} 60. Rb3 {[%clk 0:00:34.4]} 60...
d5 {[%clk 0:00:26.9]} 61. Rb5 {[%clk 0:00:34.1]} 61... Rc3+ {[%clk 0:00:25.6]}
62. Kf2 {[%clk 0:00:34.7]} 62... Rd3 {[%clk 0:00:26.5]} 63. g4 {[%clk
0:00:29.9]} 63... e4 {[%clk 0:00:27.2]} 64. Ke2 {[%clk 0:00:29.8]} 64... g5
{[%clk 0:00:23.1]} 65. h5 {[%clk 0:00:29]} 65... Rd4 {[%clk 0:00:23.8]} 66. Ke3
{[%clk 0:00:28.3]} 66... Rd3+ {[%clk 0:00:24.9]} 67. Ke2 {[%clk 0:00:29]} 67...
Rd4 {[%clk 0:00:26.1]} 68. Rb3 {[%clk 0:00:21.1]} 68... Rc4 {[%clk 0:00:25.2]}
69. Ke3 {[%clk 0:00:21.9]} 69... Rc6 {[%clk 0:00:24.3]} 70. Rb5 {[%clk
0:00:22.2]} 70... Rd6 {[%clk 0:00:22.1]} 71. Kd4 {[%clk 0:00:23.3]} 71... Rxb6
{[%clk 0:00:20.5]} 72. Rxd5 {[%clk 0:00:23.5]} 72... Rb4+ {[%clk 0:00:20.5]} 73.
Ke3 {[%clk 0:00:24.6]} 73... Kc6 {[%clk 0:00:20]} 74. Ra5 {[%clk 0:00:18.9]}
74... Kc7 {[%clk 0:00:17.2]} 75. Ra6 {[%clk 0:00:19]} 75... Rb6 {[%clk
0:00:12.3]} 76. Rxb6 {[%clk 0:00:19.5]} 76... Kxb6 {[%clk 0:00:14.2]} 77. Kxe4
{[%clk 0:00:21.4]} 77... Kc5 {[%clk 0:00:15.4]} 78. Kf5 {[%clk 0:00:23.3]} 78...
Kd5 {[%clk 0:00:16.6]} 79. Kg6 {[%clk 0:00:25.2]} 79... Ke6 {[%clk 0:00:17.8]}
80. Kxh6 {[%clk 0:00:27.1]} 80... Kf6 {[%clk 0:00:18.1]} 81. Kh7 {[%clk
0:00:28.2]} 81... Kf7 {[%clk 0:00:19.5]} 82. h6 {[%clk 0:00:29.8]} 82... Kf6
{[%clk 0:00:19.2]} 83. Kg8 {[%clk 0:00:31]} 83... Ke5 {[%clk 0:00:18.5]} 84. h7
{[%clk 0:00:31.9]} 84... Kf4 {[%clk 0:00:20.4]} 85. h8=Q {[%clk 0:00:33.8]}
85... Kxg4 {[%clk 0:00:22.2]} 86. Qf6 {[%clk 0:00:35]} 1-0

[Event "*** Titled Tuesday Blitz"]
[Site "Chess.com"]
[Date "2019.08.06"]
[Round "3"]
[White "GremioPrudente"]
[Black "smshk35"]
[Result "0-1"]
[WhiteElo "2224"]
[BlackElo "2346"]
[TimeControl "180+2"]
[EndTime "13:39:57 PDT"]
[Termination "smshk35 won on time"]

1. Nf3 {[%clk 0:03:01.9]} 1... Nf6 {[%clk 0:03:00.3]} 2. c4 {[%clk 0:03:01.8]}
2... g6 {[%clk 0:03:01.3]} 3. d4 {[%clk 0:03:01.3]} 3... Bg7 {[%clk 0:03:02.1]}
4. Nc3 {[%clk 0:03:01.8]} 4... O-O {[%clk 0:03:03.3]} 5. g3 {[%clk 0:03:01.7]}
5... d6 {[%clk 0:03:04.1]} 6. Bg2 {[%clk 0:03:02.7]} 6... c6 {[%clk 0:03:04.9]}
7. O-O {[%clk 0:03:03.3]} 7... Bf5 {[%clk 0:03:05.5]} 8. b3 {[%clk 0:03:03.3]}
8... Ne4 {[%clk 0:03:05.3]} 9. Bb2 {[%clk 0:03:03.8]} 9... d5 {[%clk 0:02:52.2]}
10. cxd5 {[%clk 0:02:55.7]} 10... cxd5 {[%clk 0:02:52.3]} 11. e3 {[%clk
0:02:51.8]} 11... Nc6 {[%clk 0:02:48.4]} 12. Nxe4 {[%clk 0:02:46.4]} 12... Bxe4
{[%clk 0:02:49.1]} 13. Nd2 {[%clk 0:02:44.4]} 13... Bxg2 {[%clk 0:02:49.7]} 14.
Kxg2 {[%clk 0:02:46.3]} 14... Rc8 {[%clk 0:02:50.5]} 15. Rc1 {[%clk 0:02:46.8]}
15... Qa5 {[%clk 0:02:48.6]} 16. a3 {[%clk 0:02:43.4]} 16... Nb8 {[%clk
0:02:38.8]} 17. b4 {[%clk 0:02:40.6]} 17... Qd8 {[%clk 0:02:31.6]} 18. Nb3
{[%clk 0:02:39.1]} 18... b6 {[%clk 0:02:32.8]} 19. Rxc8 {[%clk 0:02:37.3]} 19...
Qxc8 {[%clk 0:02:34]} 20. Qc1 {[%clk 0:02:38]} 20... e6 {[%clk 0:02:34]} 21.
Qxc8 {[%clk 0:02:37.8]} 21... Rxc8 {[%clk 0:02:35.9]} 22. Rc1 {[%clk 0:02:38.6]}
22... Rxc1 {[%clk 0:02:35.8]} 23. Nxc1 {[%clk 0:02:37.3]} 23... Kf8 {[%clk
0:02:36.9]} 24. Kf3 {[%clk 0:02:34.7]} 24... Ke7 {[%clk 0:02:38.2]} 25. Nd3
{[%clk 0:02:35.7]} 25... Kd6 {[%clk 0:02:38.9]} 26. Ke2 {[%clk 0:02:31.4]} 26...
Kc6 {[%clk 0:02:38]} 27. Bc3 {[%clk 0:02:10.6]} 27... a6 {[%clk 0:02:20.8]} 28.
Kd2 {[%clk 0:02:09.5]} 28... Nd7 {[%clk 0:02:11.2]} 29. Kc2 {[%clk 0:02:08.8]}
29... Bf8 {[%clk 0:01:53.9]} 30. Kb3 {[%clk 0:02:01.5]} 30... Bd6 {[%clk
0:01:53.2]} 31. f3 {[%clk 0:01:54.8]} 31... h5 {[%clk 0:01:51.8]} 32. e4 {[%clk
0:01:42.2]} 32... dxe4 {[%clk 0:01:38.8]} 33. fxe4 {[%clk 0:01:43.2]} 33... Bc7
{[%clk 0:01:39.1]} 34. Kc4 {[%clk 0:01:25.3]} 34... Nf6 {[%clk 0:01:33.9]} 35.
Nf2 {[%clk 0:01:05.4]} 35... h4 {[%clk 0:01:27.1]} 36. gxh4 {[%clk 0:00:50]}
36... Bxh2 {[%clk 0:01:28]} 37. Kd3 {[%clk 0:00:47.2]} 37... Nh5 {[%clk
0:01:16.8]} 38. Nh3 {[%clk 0:00:37.3]} 38... f6 {[%clk 0:01:12.6]} 39. Be1
{[%clk 0:00:30.8]} 39... Kb5 {[%clk 0:01:06.9]} 40. Kc3 {[%clk 0:00:26.2]} 40...
Ka4 {[%clk 0:00:55.9]} 41. Kb2 {[%clk 0:00:25.1]} 41... Bf4 {[%clk 0:00:27.2]}
42. Bf2 {[%clk 0:00:22.7]} 42... Bc7 {[%clk 0:00:24.6]} 43. d5 {[%clk
0:00:19.8]} 43... exd5 {[%clk 0:00:23.9]} 44. exd5 {[%clk 0:00:21.1]} 44... Kb5
{[%clk 0:00:23.2]} 45. Kb3 {[%clk 0:00:15]} 45... a5 {[%clk 0:00:21.3]} 46. a4+
{[%clk 0:00:15.8]} 46... Ka6 {[%clk 0:00:22.5]} 47. b5+ {[%clk 0:00:15.4]} 47...
Kb7 {[%clk 0:00:23.9]} 48. Kc4 {[%clk 0:00:14.2]} 48... Bd6 {[%clk 0:00:24.9]}
49. Bd4 {[%clk 0:00:12]} 49... Bg3 {[%clk 0:00:20.9]} 50. d6 {[%clk 0:00:07]}
50... Bxd6 {[%clk 0:00:21.8]} 51. Kd5 {[%clk 0:00:07.7]} 51... Bc7 {[%clk
0:00:22.8]} 52. Ke6 {[%clk 0:00:08.3]} 52... f5 {[%clk 0:00:19.3]} 53. Kf7
{[%clk 0:00:08.3]} 53... f4 {[%clk 0:00:20.4]} 54. Kxg6 {[%clk 0:00:08.6]} 54...
Ng3 {[%clk 0:00:21.7]} 55. h5 {[%clk 0:00:06.3]} 55... Ne2 {[%clk 0:00:21.9]}
56. Bf2 {[%clk 0:00:05.8]} 56... f3 {[%clk 0:00:22.7]} 57. h6 {[%clk 0:00:06.6]}
57... Be5 {[%clk 0:00:21.4]} 58. h7 {[%clk 0:00:07.4]} 58... Nc3 {[%clk
0:00:22.6]} 59. Ng5 {[%clk 0:00:05.4]} 59... Nxa4 {[%clk 0:00:23]} 60. Nf7
{[%clk 0:00:06.5]} 60... Bc3 {[%clk 0:00:21.6]} 61. Nd8+ {[%clk 0:00:04.4]}
61... Kc8 {[%clk 0:00:18.8]} 62. Ne6 {[%clk 0:00:06.3]} 62... Nc5 {[%clk
0:00:20.1]} 63. Ng7 {[%clk 0:00:07.2]} 63... Bxg7 {[%clk 0:00:20.3]} 64. Kxg7
{[%clk 0:00:08.1]} 64... Ne6+ {[%clk 0:00:21.7]} 65. Kf7 {[%clk 0:00:08.2]}
65... Ng5+ {[%clk 0:00:22.9]} 66. Kg6 {[%clk 0:00:09.1]} 66... Nxh7 {[%clk
0:00:24.3]} 67. Kxh7 {[%clk 0:00:11]} 67... a4 {[%clk 0:00:25.8]} 68. Bxb6
{[%clk 0:00:07.4]} 68... a3 {[%clk 0:00:26.3]} 69. Bd4 {[%clk 0:00:06.7]} 69...
a2 {[%clk 0:00:27.6]} 70. Kg6 {[%clk 0:00:07.1]} 70... f2 {[%clk 0:00:28.7]} 71.
Bxf2 {[%clk 0:00:07.6]} 71... a1=Q {[%clk 0:00:30]} 72. Bh4 {[%clk 0:00:08.7]}
72... Kb7 {[%clk 0:00:29.4]} 73. b6 {[%clk 0:00:06.4]} 73... Kxb6 {[%clk
0:00:30.5]} 74. Bd8+ {[%clk 0:00:07.4]} 74... Kc6 {[%clk 0:00:31.7]} 75. Bf6
{[%clk 0:00:09.3]} 75... Qg1+ {[%clk 0:00:30.8]} 76. Kf5 {[%clk 0:00:11.2]}
76... Qf1+ {[%clk 0:00:31.5]} 77. Ke6 {[%clk 0:00:13.1]} 77... Qe2+ {[%clk
0:00:32.1]} 78. Kf7 {[%clk 0:00:14.5]} 78... Qe4 {[%clk 0:00:33.2]} 79. Kg7
{[%clk 0:00:14.6]} 79... Kd5 {[%clk 0:00:34.1]} 80. Kf7 {[%clk 0:00:15.5]} 80...
Qe6+ {[%clk 0:00:33.5]} 81. Kg7 {[%clk 0:00:16.1]} 81... Qe8 {[%clk 0:00:33.5]}
82. Bg5 {[%clk 0:00:15.1]} 82... Ke6 {[%clk 0:00:33.7]} 83. Kh6 {[%clk
0:00:14.7]} 83... Qf7 {[%clk 0:00:32.7]} 84. Bh4 {[%clk 0:00:11.8]} 84... Kf5
{[%clk 0:00:33.4]} 0-1